bitfinex/quotes_BTCUSD_20241102
["timestamp","ask_amount","ask_price","bid_price","bid_amount"]
[1730557344786,0.001638,69221.0,69220.0,0.47468877]
[1730557344995,2.024158,69221.0,69220.0,0.47468877]
[1730557345413,2.024158,69221.0,69220.0,0.48868877]
[1730557345832,2.024158,69221.0,69220.0,0.47468877]
[1730557346037,2.024158,69221.0,69220.0,0.98868877]
[1730557346525,2.024158,69221.0,69220.0,0.96068877]
[1730557346739,2.024158,69221.0,69220.0,0.97468877]
[1730557347237,2.024158,69221.0,69220.0,0.98012341]
[1730557347404,2.024158,69221.0,69220.0,0.99412341]
[1730557347847,2.024158,69221.0,69220.0,0.98012341]
[1730557348389,2.024158,69221.0,69220.0,0.99412341]
[1730557349175,2.024158,69221.0,69220.0,1.00903341]
[1730557349800,2.024158,69221.0,69220.0,1.02303341]
[1730557350484,2.024158,69221.0,69220.0,1.02519977]
[1730557351329,2.024158,69221.0,69220.0,0.99719977]
[1730557351564,2.024158,69221.0,69220.0,1.01119977]
[1730557351759,2.024158,69221.0,69220.0,1.02519977]
[1730557352401,2.024158,69221.0,69220.0,1.01119977]
[1730557352588,2.024158,69221.0,69220.0,1.72519977]
[1730557352828,2.024158,69221.0,69220.0,1.71119977]
[1730557353445,2.024158,69221.0,69220.0,1.69719977]
[1730557353852,2.104458,69221.0,69220.0,1.65885225]
[1730557354132,2.104458,69221.0,69220.0,1.55274761]
[1730557354330,2.104458,69221.0,69220.0,1.45174761]
[1730557354601,2.104458,69221.0,69220.0,1.47974761]
[1730557354779,2.104458,69221.0,69220.0,1.46574761]
[1730557354999,2.104458,69221.0,69220.0,0.76574761]
[1730557355201,2.104458,69221.0,69220.0,0.75174761]
[1730557355410,2.104458,69221.0,69220.0,0.76574761]
[1730557355856,2.104458,69221.0,69220.0,0.86574761]
[1730557356621,2.104458,69221.0,69220.0,0.87974761]
[1730557357702,2.104458,69221.0,69220.0,0.88074761]
[1730557358162,2.104458,69221.0,69220.0,0.87974761]
[1730557358599,2.104458,69221.0,69220.0,0.88074761]
[1730557359715,2.104458,69221.0,69220.0,0.88118513]
[1730557360338,2.104458,69221.0,69220.0,0.88074761]
[1730557360545,2.104458,69221.0,69220.0,1.58074761]
[1730557360746,2.104458,69221.0,69220.0,0.88074761]
[1730557360970,2.104458,69221.0,69220.0,0.87974761]
[1730557363963,2.104458,69221.0,69220.0,0.90865761]
[1730557364684,2.104458,69221.0,69220.0,0.90965761]
[1730557365070,2.104458,69221.0,69220.0,0.90865761]
[1730557366857,2.104458,69221.0,69220.0,0.90965761]
[1730557367469,2.104458,69221.0,69220.0,0.90865761]
[1730557369796,2.104458,69221.0,69220.0,0.90965761]
[1730557371123,2.104458,69221.0,69220.0,0.91009513]
[1730557371323,2.104458,69221.0,69220.0,0.90965761]
[1730557371969,2.104458,69221.0,69220.0,0.91047861]
[1730557372315,2.104458,69221.0,69220.0,1.65356229]
[1730557372527,2.104458,69221.0,69220.0,1.65363023]
[1730557373344,2.104458,69221.0,69220.0,1.67520605]
[1730557373550,2.104458,69221.0,69220.0,1.85614917]
[1730557373753,2.104458,69221.0,69220.0,1.77028344]
[1730557374090,2.024158,69221.0,69220.0,1.79328344]
[1730557374295,2.602018,69221.0,69220.0,1.79328344]
[1730557374500,2.024158,69221.0,69220.0,1.79328344]
[1730557375062,2.024158,69221.0,69220.0,1.83818898]
[1730557375267,2.024158,69221.0,69220.0,1.92487898]
[1730557376122,2.024158,69221.0,69220.0,1.87997344]
[1730557376521,2.024158,69221.0,69220.0,1.92489473]
[1730557377931,2.024158,69221.0,69220.0,1.87997344]
[1730557378342,2.024158,69221.0,69220.0,1.92490362]
[1730557378987,2.024158,69221.0,69220.0,1.87997344]
[1730557379194,2.024158,69221.0,69220.0,1.88011272]
[1730557379349,2.024158,69221.0,69220.0,1.92504396]
[1730557380188,2.024158,69221.0,69220.0,1.88011272]
[1730557381159,2.024158,69221.0,69220.0,1.7929852]
[1730557381843,2.602018,69221.0,69220.0,1.83791857]
[1730557382093,2.024158,69221.0,69220.0,1.7929852]
[1730557382727,2.024158,69221.0,69220.0,1.79342272]
[1730557382903,2.024158,69221.0,69220.0,1.9014735]
[1730557383139,2.024158,69221.0,69220.0,1.7699852]
[1730557383606,2.274758,69221.0,69220.0,1.7689852]
[1730557383824,2.274758,69221.0,69220.0,1.83382258]
[1730557384028,2.274758,69221.0,69220.0,1.7689852]
[1730557384269,2.106458,69221.0,69220.0,1.87986961]
[1730557384490,2.024158,69221.0,69220.0,1.92505017]
[1730557384726,2.024158,69221.0,69220.0,2.05468092]
[1730557384937,2.024158,69221.0,69220.0,2.04068092]
[1730557385368,2.024158,69221.0,69220.0,1.92505017]
[1730557385603,2.024158,69221.0,69220.0,2.054712]
[1730557385824,2.024158,69221.0,69220.0,2.040712]
[1730557386033,2.024158,69221.0,69220.0,1.19705017]
[1730557386252,2.024158,69221.0,69220.0,1.21105017]
[1730557386459,2.024158,69221.0,69220.0,1.354712]
[1730557386669,2.024158,69221.0,69220.0,2.040712]
[1730557387091,2.024158,69221.0,69220.0,1.92505017]
[1730557387270,2.024158,69221.0,69220.0,2.054712]
[1730557387832,2.024158,69221.0,69220.0,1.92505017]
[1730557388855,2.602018,69221.0,69220.0,1.92505017]
[1730557389052,2.024158,69221.0,69220.0,1.92505017]
[1730557390388,2.024158,69221.0,69220.0,2.11657725]
[1730557390605,2.024158,69221.0,69220.0,1.92505017]
[1730557390762,2.024158,69221.0,69220.0,1.89705017]
[1730557391295,2.024158,69221.0,69220.0,1.92505017]
[1730557392710,2.024158,69221.0,69220.0,2.11654366]
[1730557394272,2.024158,69221.0,69220.0,1.92505017]
[1730557394839,1.83960912,69221.0,69220.0,1.92505017]
[1730557395107,1.82626562,69221.0,69220.0,1.92505017]
[1730557395730,1.71069362,69221.0,69220.0,1.92505017]
[1730557395933,1.68180062,69221.0,69220.0,1.92505017]
[1730557396147,1.68180062,69221.0,69220.0,1.91105017]
[1730557396377,1.68344262,69221.0,69220.0,1.91105017]
[1730557396797,1.65454962,69221.0,69220.0,1.89705017]
[1730557397041,1.62565662,69221.0,69220.0,1.91105017]
[1730557397275,1.53897762,69221.0,69220.0,1.92505017]
[1730557397485,1.97237762,69221.0,69220.0,1.91105017]
[1730557397689,1.88569862,69221.0,69220.0,1.91098149]
[1730557397897,1.82791262,69221.0,69220.0,1.91098149]
[1730557398233,1.82791262,69221.0,69220.0,1.92498149]
[1730557398655,1.79901962,69221.0,69220.0,1.92498149]
[1730557398869,1.68344762,69221.0,69220.0,1.92498149]
[1730557399081,1.60178761,69221.0,69220.0,3.43217849]
[1730557399364,1.60178761,69221.0,69220.0,3.27065657]
[1730557399543,1.44096356,69221.0,69220.0,3.27065657]
[1730557399744,1.29649856,69221.0,69220.0,3.35435657]
[1730557400619,1.22136266,69221.0,69220.0,3.35435657]
[1730557400996,1.10579066,69221.0,69220.0,3.09981657]
[1730557401207,1.10579066,69221.0,69220.0,2.29640557]
[1730557401410,1.10579066,69221.0,69220.0,2.03728149]
[1730557401793,1.10579066,69221.0,69220.0,1.87784358]
[1730557402010,1.07689766,69221.0,69220.0,2.03692922]
[1730557402221,0.96132566,69221.0,69220.0,2.03692922]
[1730557402447,0.85415551,69221.0,69220.0,2.03692922]
[1730557402660,0.82526251,69221.0,69220.0,2.03692922]
[1730557402878,0.79636951,69221.0,69220.0,1.92462922]
[1730557403304,0.76747651,69221.0,69220.0,1.92462922]
[1730557403545,0.73858351,69221.0,69220.0,2.58365822]
[1730557403739,0.73858351,69221.0,69220.0,2.46319522]
[1730557403947,0.70967351,69221.0,69220.0,2.46319522]
[1730557405700,0.70967351,69221.0,69220.0,2.09974822]
[1730557407316,0.62978543,69221.0,69220.0,2.09974822]
[1730557407912,0.62478043,69221.0,69220.0,2.09974822]
[1730557408112,0.58378043,69221.0,69220.0,2.09974822]
[1730557408721,1.01718043,69221.0,69220.0,2.09974822]
[1730557409593,0.98628043,69221.0,69220.0,2.09974822]
[1730557409780,0.97728043,69221.0,69220.0,2.09974822]
[1730557409934,0.92953043,69221.0,69220.0,2.09974822]
[1730557410148,0.75993143,69221.0,69220.0,2.09974822]
[1730557410346,0.5532761,69221.0,69220.0,2.09974822]
[1730557410542,0.52437746,69221.0,69220.0,2.09974822]
[1730557410774,0.37991246,69221.0,69220.0,2.09974822]
[1730557410974,0.31321626,69221.0,69220.0,2.09974822]
[1730557411159,0.001638,69237.0,69236.0,0.25114052]
[1730557411357,0.21818352,69237.0,69236.0,1.40228167]
[1730557411574,0.001638,69237.0,69236.0,1.40228167]
[1730557412742,0.434938,69237.0,69236.0,1.40228167]
[1730557413134,0.434938,69237.0,69236.0,1.41628167]
[1730557413424,0.434938,69237.0,69236.0,1.43028167]
[1730557413662,0.434938,69237.0,69236.0,1.93028167]
[1730557413841,0.434938,69237.0,69236.0,1.76161886]
[1730557414804,0.434938,69237.0,69236.0,1.7221239]
[1730557415260,0.434938,69237.0,69236.0,1.56303826]
[1730557415466,0.434938,69237.0,69236.0,1.72050155]
[1730557418691,1.012668,69237.0,69236.0,1.72050155]
[1730557420133,1.012668,69237.0,69236.0,1.7653736]
[1730557422528,1.012668,69237.0,69236.0,1.2253736]
[1730557423969,1.012668,69237.0,69236.0,1.9053736]
[1730557424352,1.012668,69237.0,69236.0,2.09647353]
[1730557424589,1.012668,69237.0,69236.0,1.9053736]
[1730557425144,1.094368,69237.0,69236.0,1.9053736]
[1730557425369,1.094368,69237.0,69236.0,1.90508676]
[1730557426985,1.094368,69237.0,69236.0,1.89108676]
[1730557427387,1.094368,69237.0,69236.0,1.90508676]
[1730557431776,1.672098,69237.0,69236.0,1.90508676]
[1730557432572,1.827698,69237.0,69236.0,1.90508676]
[1730557433235,1.827698,69237.0,69236.0,1.90645429]
[1730557435420,1.827698,69237.0,69236.0,1.89245429]
[1730557436045,1.827698,69237.0,69236.0,1.90645429]
[1730557436445,1.827698,69237.0,69236.0,1.90501677]
[1730557436740,1.827698,69237.0,69236.0,1.86114472]
[1730557436952,1.827698,69237.0,69236.0,1.84714472]
[1730557437114,1.827698,69237.0,69236.0,1.86158224]
[1730557437662,1.827698,69237.0,69236.0,1.90575232]
[1730557439084,1.827698,69237.0,69236.0,1.86081548]
[1730557439686,1.827698,69237.0,69236.0,1.18081548]
[1730557440769,1.249968,69237.0,69236.0,1.18081548]
[1730557440978,1.827698,69237.0,69236.0,1.18081548]
[1730557441181,1.827698,69237.0,69236.0,1.07827496]
[1730557441429,1.827698,69237.0,69236.0,0.95027496]
[1730557441655,1.827698,69237.0,69236.0,0.95527496]
[1730557441884,1.827698,69237.0,69236.0,0.95027496]
[1730557442102,1.827698,69237.0,69236.0,0.91799982]
[1730557442307,1.827698,69237.0,69236.0,0.69536525]
[1730557442523,2.405428,69237.0,69236.0,0.69536525]
[1730557442755,1.827698,69237.0,69236.0,1.24536525]
[1730557442976,1.827698,69237.0,69236.0,0.69536525]
[1730557443392,1.827698,69237.0,69236.0,0.76645525]
[1730557443809,2.260998,69237.0,69236.0,0.76645525]
[1730557444548,2.260998,69237.0,69236.0,0.68835525]
[1730557445511,2.694298,69237.0,69236.0,0.68835525]
[1730557445894,2.260998,69237.0,69236.0,0.67435525]
[1730557446321,2.260998,69237.0,69236.0,0.41605525]
[1730557446322,2.53039747,69237.0,69236.0,0.41605525]
[1730557446538,2.53039747,69237.0,69236.0,0.2120105]
[1730557446758,2.53039747,69237.0,69236.0,0.2260105]
[1730557446961,2.53039747,69237.0,69236.0,0.028]
[1730557446962,2.53095995,69237.0,69236.0,0.028]
[1730557447371,2.96425995,69237.0,69236.0,0.014]
[1730557447501,0.10167148,69232.0,69231.0,0.00082]
[1730557447704,1.37106895,69232.0,69231.0,0.06644003]
[1730557447930,2.52652895,69232.0,69231.0,0.56644003]
[1730557448879,2.42485747,69232.0,69231.0,0.66644003]
[1730557449109,2.25656,69232.0,69231.0,0.66644003]
[1730557449546,2.25659,69232.0,69231.0,0.67444003]
[1730557449713,2.25759,69232.0,69231.0,0.67444003]
[1730557450080,1.82426,69232.0,69231.0,0.68144003]
[1730557450283,2.25759,69232.0,69231.0,0.67344003]
[1730557450500,2.68992,69232.0,69231.0,0.66644003]
[1730557450706,1.82326,69232.0,69231.0,0.66644003]
[1730557450910,2.25659,69232.0,69231.0,0.68044003]
[1730557451552,2.42488747,69232.0,69231.0,0.68044003]
[1730557451762,2.42588747,69232.0,69231.0,0.68044003]
[1730557451964,2.42588747,69232.0,69231.0,0.68544003]
[1730557452179,2.26928747,69232.0,69231.0,0.68544003]
[1730557452386,2.02309,69232.0,69231.0,0.78798755]
[1730557452761,2.02309,69232.0,69231.0,0.78755003]
[1730557452986,1.58976,69232.0,69231.0,0.78755003]
[1730557453190,2.02209,69232.0,69231.0,0.78755003]
[1730557453544,2.02309,69232.0,69231.0,0.77255003]
[1730557453759,2.02309,69232.0,69231.0,0.78655003]
[1730557454240,1.58979,69232.0,69231.0,0.80146003]
[1730557454503,2.02312,69232.0,69231.0,0.81646003]
[1730557454713,2.45545,69232.0,69231.0,0.81646003]
[1730557454910,2.02212,69232.0,69231.0,0.81546003]
[1730557455110,2.02212,69232.0,69231.0,0.82546003]
[1730557455111,2.02312,69232.0,69231.0,0.82546003]
[1730557455335,2.02312,69232.0,69231.0,0.71935003]
[1730557455554,2.19141747,69232.0,69231.0,0.69044003]
[1730557459232,1.75808747,69232.0,69231.0,0.69044003]
[1730557459451,2.19141747,69232.0,69231.0,0.69044003]
[1730557461290,2.02312,69232.0,69231.0,0.79655003]
[1730557461484,2.02312,69232.0,69231.0,0.79798755]
[1730557461695,2.02312,69232.0,69231.0,0.79655003]
[1730557462346,2.02312,69232.0,69231.0,0.69044003]
[1730557462563,1.58979,69232.0,69231.0,0.69544003]
[1730557462846,2.23978,69232.0,69231.0,0.69544003]
[1730557463055,3.53976,69232.0,69231.0,0.69544003]
[1730557463290,2.23978,69232.0,69231.0,0.69044003]
[1730557463423,1.58979,69232.0,69231.0,0.69044003]
[1730557463639,2.23978,69232.0,69231.0,0.69544003]
[1730557464020,2.23978,69232.0,69231.0,0.72435003]
[1730557466362,2.23978,69232.0,69231.0,0.81104003]
[1730557466576,2.23978,69232.0,69231.0,0.71935003]
[1730557469603,2.23978,69232.0,69220.0,0.00298736]
[1730557469604,0.0821,69231.0,69220.0,0.00298736]
[1730557469859,0.0821,69225.0,69222.0,0.21654552]
[1730557470080,2.23878,69224.0,69223.0,0.13845525]
[1730557470286,2.41648,69224.0,69223.0,0.13845525]
[1730557470496,2.51816248,69224.0,69223.0,0.13845525]
[1730557470714,2.60026248,69224.0,69223.0,0.13845525]
[1730557471160,2.60026248,69224.0,69220.0,0.00298736]
[1730557471161,0.18378748,69221.0,69220.0,0.00298736]
[1730557471370,0.18378748,69221.0,69220.0,0.14144261]
[1730557471371,2.42256748,69221.0,69220.0,0.14144261]
[1730557471782,2.422005,69221.0,69220.0,0.14144261]
[1730557471991,2.422005,69221.0,69220.0,0.15327625]
[1730557472448,2.423005,69221.0,69220.0,0.16227625]
[1730557472652,2.32188,69221.0,69220.0,0.14827625]
[1730557473061,2.32288,69221.0,69220.0,0.16227625]
[1730557473618,2.32188,69221.0,69220.0,0.14827625]
[1730557474424,2.32088,69221.0,69220.0,0.13927625]
[1730557474794,2.32188,69221.0,69220.0,0.13927625]
[1730557475008,2.32288,69221.0,69220.0,0.15027625]
[1730557477817,2.24078,69221.0,69220.0,0.15027625]
[1730557479025,2.24078,69221.0,69220.0,0.57294777]
[1730557479289,2.24078,69221.0,69220.0,0.35740225]
[1730557479923,2.24078,69221.0,69220.0,0.34640225]
[1730557479924,2.23978,69221.0,69220.0,0.34640225]
[1730557480177,2.23978,69221.0,69220.0,0.36940225]
[1730557480178,2.23878,69221.0,69220.0,0.36940225]
[1730557480348,2.23878,69221.0,69220.0,0.47991225]
[1730557480502,2.23978,69221.0,69220.0,0.47991225]
[1730557481115,2.23878,69221.0,69220.0,0.56660225]
[1730557481322,2.23878,69221.0,69220.0,0.58060225]
[1730557481523,2.23978,69221.0,69220.0,0.58060225]
[1730557481723,2.23978,69221.0,69220.0,0.56660225]
[1730557482065,2.23978,69221.0,69220.0,0.58060225]
[1730557484299,2.23978,69221.0,69220.0,0.58597484]
[1730557484710,2.23978,69221.0,69220.0,0.6291565]
[1730557485681,2.23978,69221.0,69220.0,1.02717323]
[1730557485892,2.23978,69221.0,69220.0,0.7508499]
[1730557486261,2.23978,69221.0,69220.0,0.56451015]
[1730557486466,2.23978,69221.0,69220.0,0.72895844]
[1730557486672,2.23978,69221.0,69220.0,0.66417065]
[1730557486878,2.23978,69221.0,69220.0,0.65917065]
[1730557487080,2.23978,69221.0,69220.0,0.58113313]
[1730557487312,2.23978,69221.0,69220.0,0.42168484]
[1730557488144,2.23978,69221.0,69220.0,0.41131225]
[1730557488346,2.23978,69221.0,69220.0,0.41631225]
[1730557489043,2.23978,69221.0,69220.0,0.38840225]
[1730557489962,2.23978,69221.0,69220.0,0.38883977]
[1730557490257,2.23978,69221.0,69220.0,0.61168396]
[1730557491308,2.23978,69221.0,69220.0,0.60668396]
[1730557491510,2.23978,69221.0,69220.0,0.61168396]
[1730557491718,2.23978,69221.0,69220.0,0.38740225]
[1730557492137,2.23978,69221.0,69220.0,0.43061274]
[1730557492331,2.23978,69221.0,69220.0,0.38240225]
[1730557492548,2.23978,69221.0,69220.0,0.38740225]
[1730557492762,2.23978,69221.0,69220.0,0.38240225]
[1730557493110,2.23978,69221.0,69220.0,0.38740225]
[1730557493535,2.23978,69221.0,69220.0,0.38840225]
[1730557493938,2.23978,69221.0,69220.0,0.38340225]
[1730557494144,2.23978,69221.0,69220.0,0.38740225]
[1730557494352,2.23978,69221.0,69220.0,0.61172483]
[1730557494524,2.23978,69221.0,69220.0,0.44721835]
[1730557494863,2.23978,69221.0,69220.0,0.38740225]
[1730557495614,2.23978,69221.0,69220.0,0.38240225]
[1730557495836,2.23978,69221.0,69220.0,0.38740225]
[1730557496415,2.23978,69221.0,69220.0,0.38240225]
[1730557496629,2.23978,69221.0,69220.0,0.38740225]
[1730557497226,2.23978,69221.0,69220.0,0.38240225]
[1730557497877,2.23978,69221.0,69220.0,0.38740225]
[1730557499317,2.23978,69221.0,69220.0,0.25327625]
[1730557499533,2.23978,69221.0,69220.0,0.25827625]
[1730557500771,2.23978,69221.0,69220.0,0.25327625]
[1730557500945,2.24034248,69221.0,69220.0,0.25327625]
[1730557501156,2.23978,69221.0,69220.0,0.15327625]
[1730557502351,2.23978,69221.0,69220.0,0.25327625]
[1730557502982,2.23978,69221.0,69220.0,0.75327625]
[1730557503354,2.24034248,69221.0,69220.0,0.75327625]
[1730557503798,2.34146748,69221.0,69220.0,0.65327625]
[1730557503965,2.60476748,69221.0,69220.0,0.65327625]
[1730557504369,2.604205,69221.0,69220.0,0.65327625]
[1730557504576,2.604205,69221.0,69220.0,0.63927625]
[1730557504950,2.60376748,69221.0,69220.0,0.63927625]
[1730557505171,2.60376748,69221.0,69220.0,0.65327625]
[1730557505437,2.50308,69221.0,69220.0,0.66227625]
[1730557506283,2.50308,69221.0,69220.0,0.64827625]
[1730557506517,2.60476748,69221.0,69220.0,0.64827625]
[1730557506736,2.60476748,69221.0,69220.0,0.66127625]
[1730557507608,2.50364248,69221.0,69220.0,0.66127625]
[1730557507840,2.50308,69221.0,69220.0,0.66127625]
[1730557509385,2.604205,69221.0,69220.0,0.66127625]
[1730557509589,2.60476748,69221.0,69220.0,0.66127625]
[1730557510037,2.60476748,69221.0,69220.0,0.522821]
[1730557511160,2.77306495,69221.0,69220.0,0.522821]
[1730557511389,2.77806495,69221.0,69220.0,0.522821]
[1730557512333,2.77806495,69221.0,69211.0,0.21654552]
[1730557512334,0.18280048,69212.0,69211.0,0.21654552]
[1730557512542,0.96662795,69212.0,69211.0,0.21654552]
[1730557512750,2.77207795,69212.0,69211.0,0.21654552]
[1730557512982,0.101144,69208.0,69204.0,0.21654552]
[1730557513224,0.00056248,69209.0,69204.0,0.21654552]
[1730557513225,0.101146,69207.0,69205.0,0.13845525]
[1730557513432,0.101147,69206.0,69205.0,0.13845525]
[1730557513661,0.91943447,69206.0,69205.0,0.13845525]
[1730557513897,2.58988695,69206.0,69205.0,0.13845525]
[1730557514546,2.58988695,69206.0,69205.0,0.15245525]
[1730557515897,2.58988695,69206.0,69205.0,0.13845525]
[1730557516280,2.59088695,69206.0,69205.0,0.13845525]
[1730557516713,2.58988695,69206.0,69205.0,0.13845525]
[1730557518423,0.10171048,69205.0,69204.0,0.5]
[1730557518639,0.75170048,69205.0,69204.0,0.63845525]
[1730557518819,2.34049048,69205.0,69204.0,0.63845525]
[1730557519298,2.51749048,69205.0,69204.0,0.5]
[1730557519779,2.51749048,69205.0,69204.0,0.505]
[1730557521911,2.65596778,69205.0,69204.0,0.505]
[1730557523003,2.51749048,69205.0,69204.0,0.505]
[1730557526035,2.516928,69205.0,69204.0,0.505]
[1730557526475,2.51749048,69205.0,69204.0,0.505]
[1730557527324,2.51749048,69205.0,69204.0,0.505821]
[1730557529558,2.60489048,69205.0,69204.0,0.505821]
[1730557529763,2.60489048,69205.0,69192.0,0.21654552]
[1730557529764,0.10172548,69195.0,69192.0,0.21654552]
[1730557529968,0.10672548,69195.0,69192.0,0.21654552]
[1730557530189,2.34550548,69195.0,69192.0,0.21654552]
[1730557530409,0.10174048,69185.0,69184.0,0.00216683]
[1730557530630,0.75173048,69185.0,69184.0,0.00216683]
[1730557530832,2.34052048,69185.0,69184.0,0.00216683]
[1730557532614,2.34152048,69185.0,69184.0,0.00216683]
[1730557533156,2.34252048,69185.0,69184.0,0.00516683]
[1730557539601,2.42022048,69185.0,69184.0,0.00516683]
[1730557540010,2.42022048,69185.0,69184.0,0.00598783]
[1730557540618,2.59842048,69185.0,69184.0,0.00598783]
[1730557543357,2.59842048,69185.0,69184.0,0.003821]
[1730557543886,2.59742048,69185.0,69184.0,0.003821]
[1730557544871,2.41922048,69185.0,69184.0,0.003821]
[1730557545071,2.34152048,69185.0,69184.0,0.003821]
[1730557545278,2.34052048,69185.0,69184.0,0.000821]
[1730557545491,2.34052048,69185.0,69184.0,0.001821]
[1730557546128,2.34052048,69185.0,69184.0,0.13927625]
[1730557546328,2.34152048,69185.0,69184.0,0.14027625]
[1730557546964,2.50881795,69185.0,69184.0,0.13927625]
[1730557547172,2.50881795,69185.0,69184.0,0.14027625]
[1730557547574,2.50881795,69185.0,69184.0,0.001821]
[1730557548245,2.63911682,69185.0,69184.0,0.001821]
[1730557548779,2.63911682,69185.0,69184.0,0.000821]
[1730557548994,2.64011682,69185.0,69184.0,0.000821]
[1730557549244,2.64011682,69185.0,69184.0,0.006821]
[1730557549647,2.63911682,69185.0,69184.0,0.000821]
[1730557549831,2.63911682,69185.0,69184.0,0.001821]
[1730557550510,2.63911682,69185.0,69184.0,0.000821]
[1730557551123,2.50881795,69185.0,69184.0,0.000821]
[1730557551723,2.50881795,69185.0,69184.0,0.001821]
[1730557552602,2.50981795,69185.0,69184.0,0.001821]
[1730557555712,2.34152048,69185.0,69184.0,0.001821]
[1730557561632,2.340958,69185.0,69184.0,0.001821]
[1730557561782,2.34152048,69185.0,69184.0,0.001821]
[1730557562681,2.50981795,69185.0,69184.0,0.001821]
[1730557562893,2.53135082,69185.0,69184.0,0.001821]
[1730557563102,2.58741795,69185.0,69184.0,0.001821]
[1730557563749,2.76421795,69185.0,69184.0,0.001821]
[1730557567236,2.76421795,69185.0,69184.0,0.000821]
[1730557567491,2.76621795,69185.0,69184.0,0.000821]
[1730557567702,2.77121795,69185.0,69184.0,0.000821]
[1730557569014,2.59941795,69185.0,69184.0,0.000821]
[1730557569235,2.34852048,69185.0,69184.0,0.000821]
[1730557570792,2.35352048,69185.0,69184.0,0.000821]
[1730557571220,2.34852048,69185.0,69184.0,0.000821]
[1730557571494,2.35352048,69185.0,69184.0,0.000821]
[1730557572143,2.34852048,69185.0,69184.0,0.000821]
[1730557572357,2.35352048,69185.0,69184.0,0.000821]
[1730557572984,2.34852048,69185.0,69184.0,0.000821]
[1730557573158,2.35352048,69185.0,69184.0,0.000821]
[1730557577388,2.34852048,69185.0,69184.0,0.000821]
[1730557578485,2.35352048,69185.0,69184.0,0.000821]
[1730557580674,2.34852048,69185.0,69184.0,0.000821]
[1730557581339,2.24678,69185.0,69184.0,0.000821]
[1730557581577,2.347958,69185.0,69184.0,0.000821]
[1730557581805,2.24678,69185.0,69184.0,0.32347625]
[1730557582702,2.24378,69185.0,69184.0,0.32347625]
[1730557582936,2.23878,69185.0,69184.0,0.32347625]
[1730557583161,2.23978,69185.0,69184.0,0.33147625]
[1730557583379,2.24078,69185.0,69184.0,0.33147625]
[1730557587959,2.24078,69185.0,69184.0,0.14727625]
[1730557590386,2.24078,69185.0,69184.0,0.41277625]
[1730557594319,2.24134248,69185.0,69184.0,0.33147625]
[1730557594764,2.24134248,69185.0,69184.0,0.14727625]
[1730557596350,2.24134248,69185.0,69184.0,0.23396625]
[1730557596561,2.24134248,69185.0,69184.0,0.14727625]
[1730557601313,2.24078,69185.0,69184.0,0.14727625]
[1730557601539,2.341958,69185.0,69184.0,0.14727625]
[1730557601764,2.24078,69185.0,69184.0,0.14727625]
[1730557602751,2.24134248,69185.0,69184.0,0.14727625]
[1730557602980,2.34252048,69185.0,69184.0,0.14727625]
[1730557603203,2.34252048,69185.0,69184.0,0.64727625]
[1730557607389,2.34252048,69185.0,69184.0,0.508821]
[1730557607612,2.45316464,69185.0,69184.0,0.508821]
[1730557608074,2.59164194,69185.0,69184.0,0.508821]
[1730557608301,2.72106464,69185.0,69184.0,0.508821]
[1730557608748,2.71606464,69185.0,69184.0,0.508821]
[1730557608978,2.72106464,69185.0,69184.0,0.508821]
[1730557609203,2.72106464,69185.0,69184.0,0.008821]
[1730557609436,2.85954194,69185.0,69184.0,0.008821]
[1730557609708,2.72106464,69185.0,69184.0,0.008821]
[1730557610169,2.53396464,69185.0,69184.0,0.008821]
[1730557611328,2.42332048,69185.0,69184.0,0.008821]
[1730557613142,2.34752048,69185.0,69184.0,0.008821]
[1730557614084,2.34252048,69185.0,69184.0,0.008821]
[1730557614317,2.341958,69185.0,69184.0,0.008821]
[1730557617061,2.341958,69185.0,69184.0,0.14727625]
[1730557617062,2.24078,69185.0,69184.0,0.14727625]
[1730557619349,2.24078,69185.0,69184.0,0.33947625]
[1730557619572,2.24078,69185.0,69184.0,0.54065525]
[1730557619803,2.24078,69185.0,69184.0,0.61815525]
[1730557623823,2.24078,69185.0,69184.0,0.63815525]
[1730557623824,2.23978,69185.0,69184.0,0.63815525]
[1730557624346,2.23978,69185.0,69184.0,0.68944655]
[1730557624580,2.23978,69185.0,69184.0,0.68144655]
[1730557624581,2.23878,69185.0,69184.0,0.68144655]
[1730557625024,2.23978,69185.0,69184.0,0.68944655]
[1730557625448,2.23978,69185.0,69184.0,0.69044655]
[1730557625895,2.23878,69185.0,69184.0,0.68144655]
[1730557626120,2.23978,69185.0,69184.0,0.64715525]
[1730557626418,2.24078,69185.0,69184.0,0.72612362]
[1730557626641,2.24078,69185.0,69184.0,1.31281362]
[1730557626870,2.24078,69185.0,69184.0,1.47257907]
[1730557627321,2.24078,69185.0,69184.0,1.31381362]
[1730557628233,2.24078,69185.0,69184.0,1.24884525]
[1730557629396,2.24078,69185.0,69184.0,1.27774525]
[1730557632165,2.24078,69185.0,69184.0,1.27818277]
[1730557632389,2.24078,69185.0,69184.0,1.32099545]
[1730557633556,2.24078,69185.0,69184.0,1.27774525]
[1730557633787,2.24078,69185.0,69184.0,1.27818277]
[1730557634013,2.24078,69185.0,69184.0,1.52432181]
[1730557634461,2.23978,69185.0,69184.0,1.51032181]
[1730557634679,2.23978,69185.0,69184.0,1.63487898]
[1730557634898,2.23978,69185.0,69184.0,1.62587898]
[1730557634899,2.24078,69185.0,69184.0,1.62587898]
[1730557635120,2.23978,69185.0,69184.0,2.32587898]
[1730557635338,2.23878,69185.0,69184.0,2.23936965]
[1730557635554,2.23978,69185.0,69184.0,2.23936965]
[1730557635778,2.23978,69185.0,69184.0,2.23893213]
[1730557636000,2.23978,69185.0,69184.0,2.23936965]
[1730557636440,2.23978,69185.0,69184.0,2.25336965]
[1730557636673,2.23978,69185.0,69184.0,2.2532872]
[1730557637587,2.23978,69185.0,69184.0,2.31811014]
[1730557637816,2.23978,69185.0,69184.0,2.31808935]
[1730557638045,2.23978,69185.0,69184.0,2.31765183]
[1730557638344,2.23978,69185.0,69184.0,2.09330242]
[1730557638792,2.23978,69185.0,69184.0,1.32495741]
[1730557639020,2.23978,69185.0,69184.0,1.28174525]
[1730557640611,2.23978,69185.0,69184.0,1.11255525]
[1730557640872,2.23978,69185.0,69184.0,0.86845525]
[1730557641325,2.23978,69185.0,69184.0,0.66727625]
[1730557641559,2.23878,69185.0,69184.0,0.65327625]
[1730557641785,2.23878,69185.0,69184.0,0.63927625]
[1730557642010,2.23934248,69185.0,69184.0,0.65327625]
[1730557642228,2.23934248,69185.0,69184.0,0.66627625]